Cogmind - Beta 14 @@@ ROGUE MODE // 2024.12.26 @ 15:12:43 Player: PTS Result: Destroyed by P-60 Hacker with Backup Laser I Performance ------------- Evolutions (3) 1500 Regions Visited (5) 1000 Robots Destroyed (57) 285 Value Destroyed (1476) 1476 Prototype IDs (5) 100 Alien Tech Used (0) 0 Bonus (19) 19 TOTAL SCORE: 4380 Bonus ------- High Alert Combat Kills 19 Cogmind --------- Core Integrity 0/700 Matter 275/300 Energy 96/100 System Corruption 12% Temperature Cool (10) Movement Walking (130) Location -7/Factory Parts ------- > --- POWER (2) -------- (None) > --- PROPULSION (3) --- Improved Titanium Leg > --- UTILITY (4) ------ Small Storage Unit Hacking Suite System Shield > --- WEAPON (4) ------- Improved Datajack > --- INVENTORY (8) ---- (None) Peak State ------------ > --- POWER ------------ Nuclear Core Improved Deuterium Engine > --- PROPULSION ------- Wheel Wheel Compact Wheel > --- UTILITY ---------- Particle Charger Improved Light Armor Plating Hacking Suite System Shield > --- WEAPON ----------- Precision Shock Rifle Particle Cannon Advanced Beam Cannon Rocket Launcher > --- INVENTORY -------- Light Deuterium Engine Medium Storage Unit Matter Filter Light Armor Plating Improved Light Cannon [Rating: 35] Favorites ----------- Power Light Deuterium Engine Engine Light Deuterium Engine Power Core Nuclear Core Propulsion Compact Wheel Treads Light Treads Leg Aluminum Leg Wheel Compact Wheel Utility System Shield Device Heat Sink Storage Medium Storage Unit Processor Visual Processing Unit Hackware System Shield Protection Improved Light Armor Plating Weapon Particle Cannon Energy Gun EM Pulse Gun Energy Cannon Particle Cannon Ballistic Gun Assault Rifle Ballistic Cannon Improved Light Cannon Launcher Grenade Launcher Special Melee Weapon Improved Datajack Build | -11 -10 -9 -9 -8 -7 ------- Run | Yrd Mat Mat Min Mat Fac Slots Evolved 6 | . . 2 . 2 2 Power 1 | . . . . 1 . Propulsion 1 | . . . . 1 . Utility 2 | . . 1 . . 1 Weapon 2 | . . 1 . . 1 Parts Attached 74 | 11 12 15 3 9 24 Power 10 | 1 1 1 1 1 5 Engine 9 | 1 1 1 1 1 4 Core 1 | . . . . . 1 Reactor . | . . . . . . Propulsion 21 | 5 4 2 . 2 8 Treads 1 | . . . . 1 . Leg 7 | 2 . . . . 5 Wheel 13 | 3 4 2 . 1 3 Hover . | . . . . . . Flight . | . . . . . . Utility 16 | 2 2 4 . 3 5 Device 5 | 1 . 2 . 1 1 Storage 4 | 1 1 . . . 2 Processor 3 | . 1 2 . . . Hackware 2 | . . . . 2 . Protection 2 | . . . . . 2 Artifact . | . . . . . . Weapon 27 | 3 5 8 2 3 6 Energy Gun 11 | 2 2 4 1 . 2 Energy Cannon 6 | . . 2 1 2 1 Ballistic Gun 1 | 1 . . . . . Ballistic Cannon 4 | . . 2 . . 2 Launcher 4 | . 3 . . 1 . Special Weapon . | . . . . . . Impact Weapon . | . . . . . . Slashing Weapon . | . . . . . . Piercing Weapon . | . . . . . . Special Melee Weapon 1 | . . . . . 1 Unidentified Prototypes 2 | . . 1 . . 1 Corrupted Parts 2 | . . . . . 2 System Corruption 10 | . . . . . 10 Parts Lost 32 | . 5 2 2 4 19 Power 6 | . 1 . . 1 4 Propulsion 10 | . 2 1 . 2 5 Utility 5 | . . . 1 . 4 Weapon 11 | . 2 1 1 1 6 Highest Loss Streak 13 | . 3 2 2 4 13 To Critical Strikes . | . . . . . . Average Slot Usage (%) 85 | . 89 99 93 90 71 Engine 8 | . 7 11 11 15 5 Leg 1 | . . . . . 4 Wheel 18 | . 26 21 22 21 10 Device 5 | . 2 10 5 1 4 Storage 8 | . 14 11 11 7 2 Processor 5 | . 11 11 11 . . Hackware 7 | . . . . 16 15 Protection 1 | . . . . . 3 Energy Gun 7 | . 15 10 . 6 2 Energy Cannon 8 | . . 9 16 13 8 Ballistic Cannon 2 | . . 2 10 . 3 Launcher 6 | . 10 11 5 6 2 Peak Build Rating 35 | 9 9 16 16 22 35 Average Rating 15 | 6 7 14 15 20 22 On Entrance 11 | . 9 8 15 15 22 Naked Turns . | . . . . . . Heaviest Build 39 | 14 19 27 27 30 39 Greatest Support 48 | 26 26 32 32 48 36 Greatest Overweight (x) 4 | . . . . 1 4 Average Overweight (x) . | . . . . . . Largest Inventory Capacity 10 | 8 10 10 10 10 10 Average Capacity 8 | 7 8 10 10 9 6 Most Carried 9 | 4 6 9 7 6 5 Average Carried 3 | 2 3 6 6 4 2 Final Capacity 10 | 8 10 10 10 5 8 Final Carried 7 | 4 4 7 6 5 . Class Distribution -------------------- 28% | Mutant 24% | Skirmisher 23% | Hacker-Bomber 11% | Hacker-Mutant 6% | Hacker-Gunner 4% | Scavenger-Mutant Dominant Class ---------------- Mutant | -10/Materials Skirmisher | -9/Materials Skirmisher | -9/Mines Hacker-Bomber | -8/Materials Hacker-Bomber | -7/Factory Resources | -11 -10 -9 -9 -8 -7 ----------- Run | Yrd Mat Mat Min Mat Fac Matter Collected 1280 | 304 172 262 69 118 355 Remotely . | . . . . . . Salvage Created 1665 | 112 374 323 123 272 461 Parts 98 | 8 28 18 5 19 20 Haulers Intercepted 2 | . . 1 . 1 . Recyclers Shooed 2 | . 1 . . 1 . Parts Field Recycled . | . . . . . . Retrieved Matter . | . . . . . . Parts Self-Destructed . | . . . . . . Prevented . | . . . . . . Kills | -11 -10 -9 -9 -8 -7 ------- Run | Yrd Mat Mat Min Mat Fac Combat Hostiles Destroyed 36 | . 9 8 4 8 7 Guns 10 | . 3 3 1 . 3 Cannons 11 | . . 5 3 2 1 AOE 14 | . 6 . . 6 2 Classes Destroyed 12 | 3 4 3 . 1 1 Worker 4 | 1 3 . . . . Builder 3 | . . . . 1 2 Tunneler 2 | 1 1 . . . . Hauler 2 | . . 1 . 1 . Recycler 4 | 1 1 . 1 . 1 Operator 3 | . 1 1 . . 1 Watcher 3 | . 3 . . . . Swarmer 10 | . 3 3 4 . . Grunt 20 | . 6 3 . 5 6 Brawler 2 | . . 1 . 1 . Sentry 3 | . . 1 . 2 . Programmer 1 | . . . . . 1 Best Kill Streak 7 | 1 7 5 2 7 4 Combat Bots Only 6 | . 5 5 2 6 3 Max Kills in Single Turn 2 | 1 2 1 2 2 1 Gunslinging . | . . . . . . Exploded 2 | . 2 . . 2 1 Melee . | . . . . . . Uniques/NPCs Destroyed . | . . . . . . Combat | -11 -10 -9 -9 -8 -7 -------- Run | Yrd Mat Mat Min Mat Fac Hostile Shots Fired 303 | . 33 64 29 19 158 Missed 66 | . 7 18 7 2 32 Damage Taken 3423 | . 401 533 178 284 2027 Core 1040 | . 117 103 31 88 701 Absorbed by Shields . | . . . . . . Core Remaining (%) 75 | 100 53 . 66 84 . Volleys Fired 149 | 8 33 27 15 16 50 Largest 4 | 2 2 2 3 3 4 Hottest 230 | 80 80 118 176 176 230 Shots Fired 262 | 16 52 54 35 26 79 Gun 121 | 16 39 23 1 3 39 Cannon 108 | . . 28 34 11 35 Launcher 33 | . 13 3 . 12 5 Special . | . . . . . . Kinetic 32 | 4 . 4 14 . 10 Thermal 147 | 8 22 38 20 11 48 Explosive 33 | . 13 3 . 12 5 Electromagnetic 50 | 4 17 9 1 3 16 Robot Hit Streak 14 | 2 5 14 3 7 7 Robot Miss Streak 6 | 3 3 4 6 1 2 Penetration Max . | . . . . . . Secondary Targets . | . . . . . . Shots Hit Robots 134 | 7 22 29 15 13 48 Core Hits 95 | 4 31 13 5 22 20 Critical Kills . | . . . . . . Critical Parts Destroyed . | . . . . . . Critical Strikes 4 | . . . 1 . 3 Burn 3 | . . . . . 3 Blast 1 | . . . 1 . . Melee Attacks 3 | . . . . . 3 Impact . | . . . . . . Slashing . | . . . . . . Piercing . | . . . . . . Sneak Attacks 1 | . . . . . 1 Combat Hostiles . | . . . . . . Follow-up Attacks . | . . . . . . Damage Inflicted 4206 | 82 969 595 311 943 1306 Guns 1084 | 82 220 160 10 15 597 Cannons 1321 | . . 376 301 155 489 Explosions 1801 | . 749 59 . 773 220 Melee . | . . . . . . Ramming . | . . . . . . Kinetic 319 | 37 . 64 117 . 101 Thermal 1683 | 30 142 379 184 155 793 Explosive 1593 | . 749 59 . 773 12 Electromagnetic 611 | 15 78 93 10 15 400 Impact . | . . . . . . Slashing . | . . . . . . Piercing . | . . . . . . Highest Corruption 12 | . . . . . 12 Average Corruption 11 | . . . . . 11 Corruption Purged . | . . . . . . Corruption Blocked . | . . . . . . Effects 12 | . . . . . 12 Matter Fused 3 | . . . . . 3 Heat Flow Errors 3 | . . . . . 3 Energy Discharges 1 | . . . . . 1 Parts Rejected 2 | . . . . . 2 Data Loss (minor) 1 | . . . . . 1 Misfires 1 | . . . . . 1 Weapon Failures 1 | . . . . . 1 Overload Shots . | . . . . . . Overflow Damage 30 | . 16 2 3 . 9 Projectiles 5 | . . 2 3 . . Explosions 25 | . 16 . . . 9 Melee . | . . . . . . Knockbacks 8 | . . 1 4 . 3 Impact . | . . . . . . Kinetic 8 | . . 1 4 . 3 Secondary . | . . . . . . Self-Inflicted Damage 307 | . 93 49 . . 165 Shots 10 | . 3 2 . . 5 Rammed . | . . . . . . Targets Rammed . | . . . . . . Kicked . | . . . . . . Crushed . | . . . . . . Highest Temperature 752 | 18 48 240 408 189 752 Average Temperature 116 | 12 16 89 125 76 168 Received Heat Transfer 1251 | . 168 111 . 135 837 Effects 28 | . . . 1 . 27 Shutdowns 8 | . . . . . 8 Energy Bleed 3 | . . . . . 3 Interference 6 | . . . . . 6 Matter Decay 1 | . . . . . 1 Short Circuit 2 | . . . . . 2 Damage (minor) 3 | . . . 1 . 2 Damage (major) 4 | . . . . . 4 Damage (core) 1 | . . . . . 1 Siege Activations . | . . . . . . Robots Corrupted . | . . . . . . Combat Hostiles . | . . . . . . Parts Fried 1 | . . . . . 1 Impact Corruptions . | . . . . . . Robots Melted 1 | . . . . . 1 Combat Hostiles 1 | . . . . . 1 Parts Melted 6 | . . . . . 6 Heat Transferred 3227 | 75 325 705 333 259 1530 Parts Sabotaged . | . . . . . . Parts Stolen . | . . . . . . Parts Stripped . | . . . . . . Power Chain Reactions 2 | . 1 . . . 1 Alert | -11 -10 -9 -9 -8 -7 ------- Run | Yrd Mat Mat Min Mat Fac Peak Influence 438 | 15 438 397 290 370 279 Initial 168 | . 9 106 154 113 168 Average 192 | 5 261 266 211 197 148 Maximum Alert Level 2 | . 2 1 1 1 1 Low Security (%) 55 | 100 28 16 41 69 79 Level 1 37 | . 35 83 58 30 20 Level 2 7 | . 36 . . . . Level 3 . | . . . . . . Level 4 . | . . . . . . Level 5 . | . . . . . . High Security . | . . . . . . Max Security . | . . . . . . Squads Dispatched 9 | . 1 1 . 1 6 Investigation 1 | . . 1 . . . Extermination 2 | . . . . . 2 Reinforcement 6 | . 1 . . 1 4 Assault . | . . . . . . Garrison . | . . . . . . Intercept . | . . . . . . Searches Triggered . | . . . . . . Construction Impeded 3 | . . . . 1 2 Haulers Reinforced . | . . . . . . Active Scanning Responses . | . . . . . . Cargo Convoy Interrupts . | . . . . . . Stealth | -11 -10 -9 -9 -8 -7 --------- Run | Yrd Mat Mat Min Mat Fac Distress Signals 3 | . . . . 1 2 Communications Jammed . | . . . . . . Distress Signals . | . . . . . . Times Spotted 63 | . 16 14 6 9 18 Peak Tracking Total 10 | . 3 5 3 5 10 Tactical Retreats 4 | . 1 1 1 . 1 Traps | -11 -10 -9 -9 -8 -7 ------- Run | Yrd Mat Mat Min Mat Fac Traps Triggered 2 | . . 1 . . 1 Indirectly . | . . . . . . Trap Hack Attempts . | . . . . . . Triggered . | . . . . . . Disarmed . | . . . . . . Reprogrammed . | . . . . . . Reused . | . . . . . . Traps Extracted . | . . . . . . Installed . | . . . . . . Triggered . | . . . . . . Machines | -11 -10 -9 -9 -8 -7 ---------- Run | Yrd Mat Mat Min Mat Fac Machines Disabled 10 | . 2 3 2 . 3 Max in Single Turn 1 | . 1 1 1 . 1 Machines Repaired . | . . . . . . Machines Dismantled . | . . . . . . Machines Sabotaged . | . . . . . . Overloaded Fab Kills . | . . . . . . Hacking | -11 -10 -9 -9 -8 -7 --------- Run | Yrd Mat Mat Min Mat Fac Machines Accessed 9 | . 5 1 . 2 1 Terminals 6 | . 4 1 . 1 . Fabricators . | . . . . . . Repair Stations 2 | . 1 . . . 1 Recycling Units . | . . . . . . Scanalyzers 1 | . . . . 1 . Garrison Access . | . . . . . . Total Hacks 12 | . 7 1 . 3 1 Successful 6 | . 2 1 . 3 . Failed 6 | . 5 . . . 1 Catastrophic 1 | . 1 . . . . Database Lockouts . | . . . . . . Manual . | . . . . . . Terminals 8 | . 6 1 . 1 . Fabricators . | . . . . . . Repair Stations 2 | . 1 . . . 1 Recycling Units . | . . . . . . Scanalyzers 2 | . . . . 2 . Garrison Access . | . . . . . . Terminal Hacks 4 | . 2 1 . 1 . Prototype ID Bank 2 | . 2 . . . . Locate Traps 1 | . . 1 . . . Dispatch Records 1 | . . . . 1 . Fabricator Hacks . | . . . . . . Repair Station Hacks . | . . . . . . Recycling Unit Hacks . | . . . . . . Scanalyzer 2 | . . . . 2 . Insert Component 1 | . . . . 1 . Analyze 1 | . . . . 1 . Garrison Access Hacks . | . . . . . . Unauthorized Hacks . | . . . . . . Terminals . | . . . . . . Fabricators . | . . . . . . Repair Stations . | . . . . . . Recycling Units . | . . . . . . Scanalyzers . | . . . . . . Garrison Access . | . . . . . . Data Cores Recovered . | . . . . . . Used . | . . . . . . Hacking Detections 3 | . 2 . . 1 . Full Trace Events . | . . . . . . Feedback Events . | . . . . . . Feedback Blocked . | . . . . . . Robot Schematics Acquired . | . . . . . . Robots Built . | . . . . . . Authchips . | . . . . . . Time . | . . . . . . Total Robot Build Rating . | . . . . . . Part Schematics Acquired 1 | . . . . 1 . Parts Built . | . . . . . . Authchips . | . . . . . . Time . | . . . . . . Total Part Build Rating . | . . . . . . Parts Repaired . | . . . . . . Time . | . . . . . . Parts Recycled . | . . . . . . Recycled Matter . | . . . . . . Retrieved Matter . | . . . . . . Retrieved Components . | . . . . . . Parts Scanalyzed 1 | . . . . 1 . Part Schematics Acquired 1 | . . . . 1 . Parts Damaged . | . . . . . . Bothacking | -11 -10 -9 -9 -8 -7 ------------ Run | Yrd Mat Mat Min Mat Fac Used RIF Installer . | . . . . . . Robots Hacked 2 | . . . . . 2 Non-combat 1 | . . . . . 1 Combat 1 | . . . . . 1 Robot Hacks Applied 2 | . . . . . 2 parse_system 1 | . . . . . 1 find_chute 1 | . . . . . 1 Relay Couplers Released . | . . . . . . Fabnet Peak Effective % . | . . . . . . Robots Rewired . | . . . . . . Allies Hacked . | . . . . . . Hacks Repelled . | . . . . . . Allies | -11 -10 -9 -9 -8 -7 -------- Run | Yrd Mat Mat Min Mat Fac Total Allies . | . . . . . . Largest Group . | . . . . . . Highest-Rated Group . | . . . . . . Highest-Rated Ally . | . . . . . . Total Orders . | . . . . . . Ally Attacks . | . . . . . . Total Damage . | . . . . . . Kills . | . . . . . . Allies Corrupted . | . . . . . . Allies Melted . | . . . . . . Intel | -11 -10 -9 -9 -8 -7 ------- Run | Yrd Mat Mat Min Mat Fac Robot Analysis Total . | . . . . . . Derelict Logs Recovered . | . . . . . . Drone Launches . | . . . . . . Drone Recoveries . | . . . . . . Exploration | -11 -10 -9 -9 -8 -7 ------------- Run | Yrd Mat Mat Min Mat Fac Turns Passed 2112 | 161 428 371 175 264 713 Spaces Moved 1171 | 100 330 184 88 172 297 Core 53 | 12 . . . . 41 Treads 60 | . . . . 14 46 Legs 138 | 66 . . . . 72 Wheels 920 | 22 330 184 88 158 138 Hover . | . . . . . . Flight . | . . . . . . Fastest Speed 50 | 50 80 90 100 100 50 Average Speed 102 | 104 82 91 100 107 127 Slowest Speed 250 | 120 90 100 100 160 250 Overloaded Moves . | . . . . . . Propulsion Burnouts . | . . . . . . Robots Hopped . | . . . . . . Cave-ins Triggered . | . . . . . . Exploration Rate (%) 22 | 4 68 24 16 18 6 Regions Visited 5 Branch Regions 1 Pre-discovered Areas . | . . . . . . Known Exits Taken . | . . . . . . Unknown Exits Taken 5 | 1 1 1 1 1 . Scrap Searched . | . . . . . . Spaces Dug 44 | . . . . 36 8 Terrain Destroyed 199 | . 85 16 1 58 39 Melee . | . . . . . . Projectile 1 | . . . 1 . . AOE 198 | . 85 16 . 58 39 Terrain Rammed . | . . . . . . Walls Destroyed . | . . . . . . Machines Disabled . | . . . . . . Actions | -11 -10 -9 -9 -8 -7 --------- Run | Yrd Mat Mat Min Mat Fac Total 1839 | 140 431 333 142 228 565 Wait 369 | 6 42 88 37 25 171 Move 1166 | 99 329 183 87 171 297 Hop . | . . . . . . Pick Up 55 | 13 10 12 . 5 15 Fast Attach 2 | . . . . 1 1 Attach 49 | 8 5 9 1 6 20 Detach 7 | 1 . 5 . 1 . Swap 23 | 3 7 6 2 2 3 Drop 16 | 2 5 3 . 1 5 Fire 149 | 8 33 27 15 16 50 Melee 3 | . . . . . 3 Ram . | . . . . . . Kick . | . . . . . . Crush . | . . . . . . Escape Stasis . | . . . . . . Rewire . | . . . . . . Trap . | . . . . . . Miscellaneous . | . . . . . . Route ------- -11/Scrapyard -10/Materials -9/Materials -9/Mines (discovered 2 exits: *Mat x2) -8/Materials -7/Factory History --------- Turn | Location | Event 6 | -11/Scrapyard | Discovered new exit (range 15) 162 | -11/Scrapyard | Entered Materials 317 | -10/Materials | Build established: Mutant 436 | -10/Materials | Discovered new exit (range 18) 498 | -10/Materials | Lost 3 parts (1n2w) 590 | -10/Materials | Entered another Materials area 590 | -9/Materials | Evolved 2 slots: Utility x1, Weapon x1 887 | -9/Materials | Build established: Skirmisher 946 | -9/Materials | Discovered new exit (range 9) 961 | -9/Materials | Entered Mines 972 | -9/Mines | Discovered new exit (range 5) 977 | -9/Mines | Met a Derelict bent on vengeance 1011 | -9/Mines | Discovered new exit (range 15) 1136 | -9/Mines | Entered Materials 1136 | -8/Materials | Evolved 2 slots: Power x1, Propulsion x1 1320 | -8/Materials | Discovered new exit (range 10) 1359 | -8/Materials | Lost 4 parts (1p2n1w) 1400 | -8/Materials | Entered Factory 1400 | -7/Factory | Evolved 2 slots: Utility x1, Weapon x1 1872 | -7/Factory | Core integrity fell below 50% 1900 | -7/Factory | Lost 13 parts (3p3n3u4w) 1916 | -7/Factory | System corruption reached 10% 1983 | -7/Factory | Core integrity fell below 20% 2113 | -7/Factory | Destroyed by P-60 Hacker with Backup Laser I Last Messages --------------- Jacked P-60 Hacker... >>parse_system Reading system data... Sneak attack on K-01 Serf. Jacked K-01 Serf... >>find_chute Pinpointed chute assignment: (143,181). System corrupted: Aluminum Leg rejected. Acquired Aluminum Leg. Acquired Imp. Titanium Leg. Aluminum Leg destroyed. O-16 Technician uses terminal to summon reinforcements. ALERT: Hostiles spotted, dispatching reinforcements to Terminal F014. O-16 Technician locks terminal. Terminal unresponsive. System corrupted: Heat flow error (+165). W-25 Informer sends out distress signal. System corrupted: Heat flow error (+177). Map ----- +----------------------------------------------------+ | ?????????????????????????????????????????????????? | | ?????????????????????????????????????????????????? | | ?????????????????????????????????????????????????? | | ?????????????????????????????????????????????????? | | ?????????????????????????????????????????????????? | | ?????????????????????????????????????????????????? | | ??????????????????????????#####?###?#####????????? | | ??????????????????????????# !!! #????????? | | ??????????????????????????# !! #????????? | | ???????????????????????#+?# !! #????????? | | ???????????????????????# ?? ?????????? | | ???????????????????????# ?# """ """ """ #????????? | | ???????????????????????# ?? """ """ """ ?????????? | | ???????????????????????# ????"" """ ""??####+####? | | ???????????????????????# ?????? ????# ## | | ??????????????????????## ########+####### | | ??????????????????????# | | ??????????????????????# T | | ??????????????????????# k | | ??????????????????????# kp############### | | ??????????????????????# #?????????????# ## | | ??????????????????????# #??#######????### ### | | ??????????????????????# # #??????# #?#? | | ??????????????????????# + "" #??????+ #??? | | ??????????????????????# # "" #??????# #??? | | ??????????????????????#t @#?? "" #??????# #??? | | ????????????????? k k #???? S #??????# #??? | | ???????????? +??????" #??????# #??? | | ??????????? #????????#??????# T??? | | ???????????################???????????????# "??? | | ??????????????????????????????????????????# #??? | | ??????????????????????????????????????????? #??? | | ???????????????????????????????????????????? ????? | | ?????????????????????????????????????????????????? | | ?????????????????????????????????????????????????? | | ?????????????????????????????????????????????????? | | ?????????????????????????????????????????????????? | | ?????????????????????????????????????????????????? | | ?????????????????????????????????????????????????? | | ?????????????????????????????????????????????????? | | ?????????????????????????????????????????????????? | | ?????????????????????????????????????????????????? | | ?????????????????????????????????????????????????? | | ?????????????????????????????????????????????????? | | ?????????????????????????????????????????????????? | | ?????????????????????????????????????????????????? | | ?????????????????????????????????????????????????? | | ?????????????????????????????????????????????????? | | ?????????????????????????????????????????????????? | | ?????????????????????????????????????????????????? | +----------------------------------------------------+ Best States ------------- Heat Dissipation 38 Energy Generation 25 Energy Capacity 430 Matter Stores 300 Matter Capacity 300 Sight Range 18 Terrain Scan Range 16 Terrain Scan Density 10 Armor Coverage 300 Evasion (%) 55 Recoil Reduction 1 Matter Filtering 30 Particle Charging 15 Offensive Hacking 10 Defensive Hacking 10 Item Schematics ----------------- Lgt. Deuterium Engine | -8/Materials | Scanalyzed Robot Schematics ------------------ None Fabricated ------------ Nothing Alien Tech Used ----------------- None Achievements -------------- It's Just You Challenges ------------ None Game ------ Seed DataBurstHumpback Manual? 0 Play Time 00:33:55 Cumulative 5.9 hours Start 2024.12.26 @ 14:33:47 End 2024.12.26 @ 15:12:43 Sessions 1 Manual Loads 0 Difficulty Rogue Special Mode None Game No. 10 Rogue 10 Adventurer 0 Explorer 0 Win Type - Total 0 Types 0/0/0/0/0/0/0/0/0 Lore% 3 Gallery% 14 Achievement% 12 Wizard Run 0 Options --------- Layout 1 ASCII 0 Keyboard 0 Movement Mouse Keybinds 0 Fullscreen 1 Font 24/Smallcaps Map View 50x35 Zoom Use 0% Tactical HUD 0 Map Filters NONE Filters NONE Steam 1 RUN: 3d2b98d8-5d73-40c1-bbb8-a83469e819b1